[Event "Early-Titled-Tuesday-Blitz-April-16-2024"]
[Site "Chess.com"]
[Date "2024.04.16"]
[Round "10"]
[White "mertfelin"]
[Black "andong36"]
[Result "0-1"]
[WhiteElo "2252"]
[BlackElo "2402"]
[TimeControl "180+1"]
[EndTime "9:58:56 PDT"]
[Termination "andong36 won by checkmate"]

1. e4 {[%clk 0:03:00.4]} 1... d5 {[%clk 0:02:51.1]} 2. exd5 {[%clk 0:02:56.4]}
2... Nf6 {[%clk 0:02:48.8]} 3. d4 {[%clk 0:02:55.8]} 3... Nxd5 {[%clk
0:02:48.4]} 4. Nf3 {[%clk 0:02:55.2]} 4... Bf5 {[%clk 0:02:46.1]} 5. Ng1 {[%clk
0:02:55.1]} 5... e6 {[%clk 0:02:42.5]} 6. c3 {[%clk 0:02:50.5]} 6... Nc6 {[%clk
0:02:39.3]} 7. Bd3 {[%clk 0:02:50.7]} 7... Bg6 {[%clk 0:02:37.8]} 8. Nf3 {[%clk
0:02:49.8]} 8... Bd6 {[%clk 0:02:35.1]} 9. O-O {[%clk 0:02:49.5]} 9... Bh5
{[%clk 0:02:32]} 10. Re1 {[%clk 0:02:39.6]} 10... Qf6 {[%clk 0:02:27.7]} 11. c4
{[%clk 0:02:25.4]} 11... Nf4 {[%clk 0:02:26.1]} 12. Bxf4 {[%clk 0:01:49.1]}
12... Qxf4 {[%clk 0:02:27]} 13. d5 {[%clk 0:01:49.8]} 13... Nd4 {[%clk
0:02:22.1]} 14. Be4 {[%clk 0:01:02.8]} 14... f5 {[%clk 0:01:48.5]} 15. Qxd4
{[%clk 0:00:53]} 15... Bxf3 {[%clk 0:01:45.9]} 16. gxf3 {[%clk 0:00:11]} 16...
fxe4 {[%clk 0:01:31.3]} 17. Rxe4 {[%clk 0:00:09.3]} 17... Qxh2+ {[%clk
0:01:29.6]} 18. Kf1 {[%clk 0:00:09.8]} 18... e5 {[%clk 0:01:28.4]} 19. Qe3
{[%clk 0:00:06.3]} 19... O-O {[%clk 0:01:25.1]} 20. c5 {[%clk 0:00:06]} 20...
Be7 {[%clk 0:01:19.4]} 21. Rg4 {[%clk 0:00:06.1]} 21... Rf5 {[%clk 0:01:09.2]}
22. Nc3 {[%clk 0:00:06.3]} 22... Raf8 {[%clk 0:01:08.1]} 23. Ke2 {[%clk
0:00:04.5]} 23... Rxf3 {[%clk 0:01:02.7]} 24. Qxf3 {[%clk 0:00:05.1]} 24... Rxf3
{[%clk 0:01:03.3]} 25. Kxf3 {[%clk 0:00:05.7]} 25... Bxc5 {[%clk 0:01:03.9]} 26.
Rag1 {[%clk 0:00:05.3]} 26... Qxf2+ {[%clk 0:00:57.7]} 27. Ke4 {[%clk
0:00:04.8]} 27... Qe3+ {[%clk 0:00:53.8]} 28. Kf5 {[%clk 0:00:05.4]} 28... g6+
{[%clk 0:00:54.3]} 29. Ke6 {[%clk 0:00:05.6]} 29... Qf2 {[%clk 0:00:49.1]} 30.
Ne4 {[%clk 0:00:05.1]} 30... Qf5# {[%clk 0:00:46.4]} 0-1

[Event "Early-Titled-Tuesday-Blitz-April-16-2024"]
[Site "Chess.com"]
[Date "2024.04.16"]
[Round "10"]
[White "Felix-Rose"]
[Black "tarno17"]
[Result "1-0"]
[WhiteElo "2191"]
[BlackElo "2120"]
[TimeControl "180+1"]
[EndTime "9:58:56 PDT"]
[Termination "Felix-Rose won on time"]

1. d4 {[%clk 0:03:00]} 1... d5 {[%clk 0:03:00]} 2. c4 {[%clk 0:03:00.1]} 2... e6
{[%clk 0:03:00.3]} 3. Nc3 {[%clk 0:03:00.1]} 3... Nf6 {[%clk 0:02:59.4]} 4. Bg5
{[%clk 0:02:59.7]} 4... Be7 {[%clk 0:02:59.6]} 5. Nf3 {[%clk 0:02:59.8]} 5... h6
{[%clk 0:02:59.1]} 6. Bh4 {[%clk 0:02:59.1]} 6... O-O {[%clk 0:02:59.7]} 7. e3
{[%clk 0:02:59]} 7... b6 {[%clk 0:03:00.3]} 8. Rc1 {[%clk 0:02:55.8]} 8... Bb7
{[%clk 0:03:00.8]} 9. Bd3 {[%clk 0:02:52.8]} 9... Nbd7 {[%clk 0:02:57.6]} 10.
O-O {[%clk 0:02:47.7]} 10... c5 {[%clk 0:02:54.3]} 11. cxd5 {[%clk 0:02:46.8]}
11... Nxd5 {[%clk 0:02:49.5]} 12. Bxe7 {[%clk 0:02:46.9]} 12... Qxe7 {[%clk
0:02:48.4]} 13. Nxd5 {[%clk 0:02:35.8]} 13... exd5 {[%clk 0:02:46.6]} 14. dxc5
{[%clk 0:02:31.3]} 14... bxc5 {[%clk 0:02:41.3]} 15. Bb1 {[%clk 0:02:21.1]}
15... Rfd8 {[%clk 0:02:35.7]} 16. Qc2 {[%clk 0:02:19.3]} 16... Nf8 {[%clk
0:02:30.5]} 17. Qxc5 {[%clk 0:02:17.5]} 17... Qe6 {[%clk 0:02:15.4]} 18. Nd4
{[%clk 0:02:16.5]} 18... Qg4 {[%clk 0:02:10.9]} 19. Bf5 {[%clk 0:02:11]} 19...
Qg5 {[%clk 0:02:07.3]} 20. Rfd1 {[%clk 0:02:02.9]} 20... Ng6 {[%clk 0:01:58.5]}
21. Bxg6 {[%clk 0:01:54.5]} 21... Qxg6 {[%clk 0:01:56.2]} 22. Qc7 {[%clk
0:01:53.6]} 22... Rab8 {[%clk 0:01:44.9]} 23. b3 {[%clk 0:01:48.4]} 23... Qg4
{[%clk 0:01:31.8]} 24. h3 {[%clk 0:01:41.6]} 24... Qe4 {[%clk 0:01:24.5]} 25.
Qa5 {[%clk 0:01:31.5]} 25... a6 {[%clk 0:01:20.8]} 26. Rc7 {[%clk 0:01:21]}
26... Rd6 {[%clk 0:01:08.2]} 27. Qb4 {[%clk 0:01:10.9]} 27... Rg6 {[%clk
0:01:07.2]} 28. g3 {[%clk 0:00:58.5]} 28... a5 {[%clk 0:00:11.4]} 29. Qb5 {[%clk
0:00:46.6]} 1-0

[Event "Early-Titled-Tuesday-Blitz-April-16-2024"]
[Site "Chess.com"]
[Date "2024.04.16"]
[Round "10"]
[White "AmanteDeMoi"]
[Black "NasirAkylbekov"]
[Result "0-1"]
[WhiteElo "2587"]
[BlackElo "2526"]
[TimeControl "180+1"]
[EndTime "9:59:00 PDT"]
[Termination "NasirAkylbekov won on time"]

1. Nf3 {[%clk 0:02:17.9]} 1... Nf6 {[%clk 0:02:59.9]} 2. b3 {[%clk 0:02:17.6]}
2... b6 {[%clk 0:03:00]} 3. Bb2 {[%clk 0:02:18.5]} 3... Bb7 {[%clk 0:03:00.9]}
4. e3 {[%clk 0:02:19.2]} 4... d6 {[%clk 0:03:01.4]} 5. Be2 {[%clk 0:02:18.7]}
5... Nbd7 {[%clk 0:03:01.9]} 6. O-O {[%clk 0:02:19.6]} 6... g6 {[%clk
0:03:02.7]} 7. c4 {[%clk 0:02:20.3]} 7... Bg7 {[%clk 0:03:03.4]} 8. Nc3 {[%clk
0:02:20.9]} 8... O-O {[%clk 0:03:04]} 9. Qc2 {[%clk 0:02:21.1]} 9... e5 {[%clk
0:03:04.6]} 10. Rad1 {[%clk 0:02:21.5]} 10... c6 {[%clk 0:03:04.4]} 11. d4
{[%clk 0:02:22]} 11... Qe7 {[%clk 0:03:04.4]} 12. dxe5 {[%clk 0:02:22]} 12...
dxe5 {[%clk 0:03:04.5]} 13. Ne4 {[%clk 0:02:20.6]} 13... Nxe4 {[%clk 0:02:58.9]}
14. Qxe4 {[%clk 0:02:21.5]} 14... Rfd8 {[%clk 0:02:55.2]} 15. Qc2 {[%clk
0:01:43.4]} 15... c5 {[%clk 0:02:48]} 16. e4 {[%clk 0:01:14.4]} 16... a5 {[%clk
0:02:43]} 17. a4 {[%clk 0:01:14.1]} 17... Nf8 {[%clk 0:02:40.2]} 18. Rfe1 {[%clk
0:00:43.6]} 18... f6 {[%clk 0:02:37.4]} 19. Nd2 {[%clk 0:00:26.2]} 19... Ne6
{[%clk 0:02:35.9]} 20. Nf1 {[%clk 0:00:24.1]} 20... Bh6 {[%clk 0:02:31.6]} 21.
Rd5 {[%clk 0:00:18.5]} 21... Bxd5 {[%clk 0:02:29.2]} 22. exd5 {[%clk 0:00:18]}
22... Nd4 {[%clk 0:02:25.8]} 23. Qd3 {[%clk 0:00:17.7]} 23... Qd6 {[%clk
0:02:23.9]} 24. Bd1 {[%clk 0:00:16]} 24... Re8 {[%clk 0:02:18.7]} 25. Qh3 {[%clk
0:00:15.1]} 25... Bg7 {[%clk 0:02:14.4]} 26. Ng3 {[%clk 0:00:15]} 26... f5
{[%clk 0:02:14.4]} 27. Nf1 {[%clk 0:00:11.9]} 27... e4 {[%clk 0:02:09]} 28. Bc1
{[%clk 0:00:12]} 28... f4 {[%clk 0:01:50.4]} 29. Qg4 {[%clk 0:00:07.8]} 29...
Bh6 {[%clk 0:01:50]} 30. g3 {[%clk 0:00:03.1]} 30... e3 {[%clk 0:01:25.2]} 31.
fxe3 {[%clk 0:00:01.8]} 31... fxe3 {[%clk 0:01:25.1]} 32. Bxe3 {[%clk
0:00:01.8]} 32... Nf5 {[%clk 0:01:18.3]} 33. Bf2 {[%clk 0:00:01.8]} 33... Qf6
{[%clk 0:01:11.2]} 34. Rxe8+ {[%clk 0:00:01.9]} 34... Rxe8 {[%clk 0:01:12.1]}
35. Bc2 {[%clk 0:00:02]} 35... Nd4 {[%clk 0:01:08]} 36. Bd1 {[%clk 0:00:02.2]}
36... Rf8 {[%clk 0:01:07]} 0-1

[Event "Early-Titled-Tuesday-Blitz-April-16-2024"]
[Site "Chess.com"]
[Date "2024.04.16"]
[Round "10"]
[White "JonSnowNW1"]
[Black "Yan_Dyomin2010"]
[Result "1-0"]
[WhiteElo "2550"]
[BlackElo "2622"]
[TimeControl "180+1"]
[EndTime "9:59:01 PDT"]
[Termination "JonSnowNW1 won by checkmate"]

1. c4 {[%clk 0:03:00.9]} 1... g6 {[%clk 0:02:57.4]} 2. Nc3 {[%clk 0:02:58.8]}
2... c5 {[%clk 0:02:57]} 3. g3 {[%clk 0:02:58.9]} 3... Bg7 {[%clk 0:02:57.5]} 4.
Bg2 {[%clk 0:02:59.5]} 4... Nc6 {[%clk 0:02:58]} 5. Nf3 {[%clk 0:03:00.1]} 5...
d6 {[%clk 0:02:57.4]} 6. O-O {[%clk 0:03:00.5]} 6... Qd7 {[%clk 0:02:57]} 7. e3
{[%clk 0:02:51.1]} 7... b6 {[%clk 0:02:51.4]} 8. d4 {[%clk 0:02:51.1]} 8... Bb7
{[%clk 0:02:51.6]} 9. d5 {[%clk 0:02:50.1]} 9... Na5 {[%clk 0:02:52]} 10. Nd2
{[%clk 0:02:46.8]} 10... Nf6 {[%clk 0:02:52.4]} 11. e4 {[%clk 0:02:46.5]} 11...
O-O {[%clk 0:02:52.6]} 12. Qc2 {[%clk 0:02:45.7]} 12... e6 {[%clk 0:02:52.6]}
13. b3 {[%clk 0:02:45.4]} 13... exd5 {[%clk 0:02:51.4]} 14. exd5 {[%clk
0:02:43]} 14... Rfe8 {[%clk 0:02:50.3]} 15. Bb2 {[%clk 0:02:43]} 15... a6 {[%clk
0:02:15.1]} 16. Nce4 {[%clk 0:02:37]} 16... Nxe4 {[%clk 0:02:13.9]} 17. Nxe4
{[%clk 0:02:36.8]} 17... Qe7 {[%clk 0:01:38.5]} 18. Rae1 {[%clk 0:02:29.1]}
18... Kf8 {[%clk 0:01:23.2]} 19. Bc3 {[%clk 0:01:42.5]} 19... Rad8 {[%clk
0:01:12.7]} 20. f4 {[%clk 0:00:36.5]} 20... Bc8 {[%clk 0:01:07.2]} 21. Ng5
{[%clk 0:00:14.1]} 21... Qd7 {[%clk 0:00:26.6]} 22. Bxg7+ {[%clk 0:00:13.6]}
22... Kxg7 {[%clk 0:00:25.9]} 23. Qc3+ {[%clk 0:00:14.1]} 23... Kg8 {[%clk
0:00:18.7]} 24. Ne4 {[%clk 0:00:14.6]} 24... Rxe4 {[%clk 0:00:19.2]} 25. Rxe4
{[%clk 0:00:14.1]} 25... Kf8 {[%clk 0:00:18.8]} 26. Qh8# {[%clk 0:00:13.4]} 1-0

[Event "Early-Titled-Tuesday-Blitz-April-16-2024"]
[Site "Chess.com"]
[Date "2024.04.16"]
[Round "10"]
[White "AndrewB92"]
[Black "Knightmare1014"]
[Result "0-1"]
[WhiteElo "2447"]
[BlackElo "2332"]
[TimeControl "180+1"]
[EndTime "9:59:03 PDT"]
[Termination "Knightmare1014 won on time"]

1. d4 {[%clk 0:03:00]} 1... d5 {[%clk 0:02:59.9]} 2. Nf3 {[%clk 0:03:00.1]} 2...
Nf6 {[%clk 0:02:58.9]} 3. c4 {[%clk 0:03:00.3]} 3... e6 {[%clk 0:02:59.2]} 4.
Nc3 {[%clk 0:03:00.5]} 4... Be7 {[%clk 0:02:58.6]} 5. Bg5 {[%clk 0:03:00.7]}
5... Nbd7 {[%clk 0:02:57.3]} 6. e3 {[%clk 0:03:00.9]} 6... h6 {[%clk 0:02:57.4]}
7. Bh4 {[%clk 0:03:00.5]} 7... O-O {[%clk 0:02:57.5]} 8. Qc2 {[%clk 0:03:00.4]}
8... c5 {[%clk 0:02:57.2]} 9. cxd5 {[%clk 0:02:59.7]} 9... cxd4 {[%clk
0:02:57.3]} 10. Nxd4 {[%clk 0:02:48.9]} 10... Nxd5 {[%clk 0:02:57.3]} 11. Bxe7
{[%clk 0:02:40.2]} 11... Nxe7 {[%clk 0:02:58.2]} 12. O-O-O {[%clk 0:02:29.8]}
12... a6 {[%clk 0:02:56.3]} 13. Kb1 {[%clk 0:02:28.3]} 13... Qc7 {[%clk
0:02:55.5]} 14. Be2 {[%clk 0:02:22.5]} 14... b5 {[%clk 0:02:55.6]} 15. Bf3
{[%clk 0:02:21.9]} 15... Bb7 {[%clk 0:02:53.6]} 16. Ncxb5 {[%clk 0:01:39.2]}
16... Qxc2+ {[%clk 0:02:49.4]} 17. Nxc2 {[%clk 0:01:38.4]} 17... Bxf3 {[%clk
0:02:39.8]} 18. Rxd7 {[%clk 0:01:38.3]} 18... Bxg2 {[%clk 0:02:36.1]} 19. Rg1
{[%clk 0:01:38.1]} 19... Be4 {[%clk 0:02:27.4]} 20. Nc3 {[%clk 0:01:32.7]} 20...
Bxc2+ {[%clk 0:02:27.6]} 21. Kxc2 {[%clk 0:01:32.2]} 21... Nc6 {[%clk
0:02:25.1]} 22. f4 {[%clk 0:01:22]} 22... Rad8 {[%clk 0:02:23.4]} 23. Rgd1
{[%clk 0:01:18.5]} 23... Rxd7 {[%clk 0:02:20.7]} 24. Rxd7 {[%clk 0:01:19.4]}
24... Rd8 {[%clk 0:02:21]} 25. Rc7 {[%clk 0:01:19]} 25... Nb4+ {[%clk
0:02:20.8]} 26. Kb3 {[%clk 0:01:18.4]} 26... Nd5 {[%clk 0:02:18.5]} 27. Nxd5
{[%clk 0:01:10.3]} 27... Rxd5 {[%clk 0:02:18.6]} 28. a4 {[%clk 0:01:06.9]} 28...
e5 {[%clk 0:02:11.6]} 29. fxe5 {[%clk 0:00:38.3]} 29... Rxe5 {[%clk 0:02:11.4]}
30. Rc3 {[%clk 0:00:34.4]} 30... f5 {[%clk 0:02:10.5]} 31. Kb4 {[%clk
0:00:30.8]} 31... a5+ {[%clk 0:02:09]} 32. Kc4 {[%clk 0:00:30.4]} 32... g5
{[%clk 0:02:07]} 33. Rb3 {[%clk 0:00:23.3]} 33... Kg7 {[%clk 0:02:04]} 34. Rb5
{[%clk 0:00:22.1]} 34... Re4+ {[%clk 0:01:58.2]} 35. Kb3 {[%clk 0:00:17.6]}
35... Rxe3+ {[%clk 0:01:58.4]} 36. Ka2 {[%clk 0:00:17.5]} 36... Kg6 {[%clk
0:01:53.3]} 37. Rxa5 {[%clk 0:00:17.6]} 37... f4 {[%clk 0:01:53.7]} 38. Ra6+
{[%clk 0:00:17.1]} 38... Kf5 {[%clk 0:01:53.6]} 39. Rxh6 {[%clk 0:00:17.4]}
39... f3 {[%clk 0:01:53.2]} 40. Rh8 {[%clk 0:00:17.1]} 40... Ke4 {[%clk
0:01:50.1]} 41. a5 {[%clk 0:00:16.9]} 41... f2 {[%clk 0:01:49.9]} 42. Re8+
{[%clk 0:00:15]} 42... Kf3 {[%clk 0:01:36.4]} 43. Rf8+ {[%clk 0:00:14.9]} 43...
Kg2 {[%clk 0:01:36.1]} 44. a6 {[%clk 0:00:10.6]} 44... Re6 {[%clk 0:01:30.1]}
0-1

[Event "Early-Titled-Tuesday-Blitz-April-16-2024"]
[Site "Chess.com"]
[Date "2024.04.16"]
[Round "10"]
[White "bubeliang"]
[Black "DeArron_Fox"]
[Result "0-1"]
[WhiteElo "2760"]
[BlackElo "2562"]
[TimeControl "180+1"]
[EndTime "9:59:04 PDT"]
[Termination "DeArron_Fox won by checkmate"]

1. e4 {[%clk 0:03:00.9]} 1... c5 {[%clk 0:02:56.5]} 2. c3 {[%clk 0:02:59.4]}
2... d5 {[%clk 0:02:56.5]} 3. exd5 {[%clk 0:03:00.3]} 3... Qxd5 {[%clk
0:02:57.1]} 4. d4 {[%clk 0:03:00.7]} 4... Nf6 {[%clk 0:02:57.8]} 5. Nf3 {[%clk
0:02:59.8]} 5... e6 {[%clk 0:02:58.1]} 6. Na3 {[%clk 0:02:59.5]} 6... Nc6 {[%clk
0:02:57.3]} 7. Be3 {[%clk 0:02:59.4]} 7... cxd4 {[%clk 0:02:56.9]} 8. Nb5 {[%clk
0:02:59.4]} 8... Qd8 {[%clk 0:02:56.9]} 9. Nbxd4 {[%clk 0:02:59.4]} 9... Nd5
{[%clk 0:02:53.3]} 10. Nxc6 {[%clk 0:02:56.9]} 10... bxc6 {[%clk 0:02:54.2]} 11.
Bd4 {[%clk 0:02:57.3]} 11... c5 {[%clk 0:02:16.3]} 12. Ne5 {[%clk 0:02:51.8]}
12... Bd6 {[%clk 0:01:11.9]} 13. Qh5 {[%clk 0:01:34.4]} 13... O-O {[%clk
0:00:17.1]} 14. Bd3 {[%clk 0:01:32.5]} 14... Nf6 {[%clk 0:00:16.3]} 15. Qh3
{[%clk 0:01:03.9]} 15... cxd4 {[%clk 0:00:11.6]} 16. Ng4 {[%clk 0:01:02.8]}
16... g6 {[%clk 0:00:08.9]} 17. Nh6+ {[%clk 0:01:03]} 17... Kg7 {[%clk
0:00:08.1]} 18. O-O {[%clk 0:01:03.9]} 18... e5 {[%clk 0:00:06]} 19. Qh4 {[%clk
0:01:02]} 19... Nd5 {[%clk 0:00:03.8]} 20. Qe4 {[%clk 0:00:43.9]} 20... Be6
{[%clk 0:00:04.1]} 21. c4 {[%clk 0:00:41.5]} 21... Nf4 {[%clk 0:00:03.1]} 22.
Ng4 {[%clk 0:00:31.1]} 22... Bxg4 {[%clk 0:00:02.9]} 23. f3 {[%clk 0:00:32]}
23... Bf5 {[%clk 0:00:02.9]} 24. Qe1 {[%clk 0:00:32.7]} 24... Nxd3 {[%clk
0:00:03]} 25. Rf2 {[%clk 0:00:33.6]} 25... Nxe1 {[%clk 0:00:03.1]} 26. Rxe1
{[%clk 0:00:34]} 26... d3 {[%clk 0:00:04]} 27. Rfe2 {[%clk 0:00:34.9]} 27...
Bc5+ {[%clk 0:00:04.3]} 28. Rf2 {[%clk 0:00:35.7]} 28... d2 {[%clk 0:00:04.7]}
29. Rd1 {[%clk 0:00:36.2]} 29... Bxf2+ {[%clk 0:00:04.4]} 30. Kxf2 {[%clk
0:00:36.6]} 30... Qd4+ {[%clk 0:00:05.3]} 31. Kg3 {[%clk 0:00:37.5]} 31... Qxc4
{[%clk 0:00:05.6]} 32. Rxd2 {[%clk 0:00:38.4]} 32... Qf4+ {[%clk 0:00:06.1]} 33.
Kf2 {[%clk 0:00:38.6]} 33... Qxd2+ {[%clk 0:00:07]} 34. Kg3 {[%clk 0:00:39.5]}
34... e4 {[%clk 0:00:06.3]} 35. Kh4 {[%clk 0:00:40.4]} 35... exf3 {[%clk
0:00:06.4]} 36. g4 {[%clk 0:00:41]} 36... Qxh2+ {[%clk 0:00:05.9]} 37. Kg5
{[%clk 0:00:41.3]} 37... h6# {[%clk 0:00:06.7]} 0-1

[Event "Early-Titled-Tuesday-Blitz-April-16-2024"]
[Site "Chess.com"]
[Date "2024.04.16"]
[Round "10"]
[White "Tol_Tol"]
[Black "Bwert2602"]
[Result "0-1"]
[WhiteElo "2380"]
[BlackElo "2254"]
[TimeControl "180+1"]
[EndTime "9:59:04 PDT"]
[Termination "Bwert2602 won by resignation"]

1. d4 {[%clk 0:03:00.9]} 1... e5 {[%clk 0:02:59.3]} 2. dxe5 {[%clk 0:03:00.4]}
2... Nc6 {[%clk 0:02:59.7]} 3. Nf3 {[%clk 0:03:00.2]} 3... d6 {[%clk 0:03:00.2]}
4. e4 {[%clk 0:02:59.9]} 4... dxe5 {[%clk 0:02:59.6]} 5. Qxd8+ {[%clk
0:02:59.2]} 5... Kxd8 {[%clk 0:03:00.5]} 6. Bb5 {[%clk 0:02:58.2]} 6... f6
{[%clk 0:02:59.7]} 7. Bxc6 {[%clk 0:02:57.6]} 7... bxc6 {[%clk 0:02:59.7]} 8.
Be3 {[%clk 0:02:55]} 8... Be6 {[%clk 0:02:56.8]} 9. b3 {[%clk 0:02:52.5]} 9...
a5 {[%clk 0:02:52.6]} 10. a4 {[%clk 0:02:43.9]} 10... Nh6 {[%clk 0:02:42.5]} 11.
h3 {[%clk 0:02:41]} 11... Nf7 {[%clk 0:02:35.5]} 12. Ke2 {[%clk 0:02:36.4]}
12... Bd6 {[%clk 0:02:28]} 13. Nfd2 {[%clk 0:02:31.8]} 13... Bb4 {[%clk
0:02:07.5]} 14. Na3 {[%clk 0:02:28.9]} 14... Bc3 {[%clk 0:02:02.7]} 15. Rad1
{[%clk 0:02:25.6]} 15... Nd6 {[%clk 0:02:02.9]} 16. Ndc4 {[%clk 0:02:22.1]}
16... Ke7 {[%clk 0:01:57.3]} 17. Bc5 {[%clk 0:02:16.7]} 17... Bb4 {[%clk
0:01:57.3]} 18. Bxb4 {[%clk 0:02:03.1]} 18... axb4 {[%clk 0:01:57.2]} 19. Nxd6
{[%clk 0:02:03.5]} 19... cxd6 {[%clk 0:01:44.4]} 20. Nb1 {[%clk 0:01:57.9]}
20... d5 {[%clk 0:01:40]} 21. Ke3 {[%clk 0:01:48.1]} 21... Rhd8 {[%clk
0:01:34.2]} 22. f4 {[%clk 0:01:37.5]} 22... exf4+ {[%clk 0:01:21.7]} 23. Kxf4
{[%clk 0:01:37.3]} 23... dxe4 {[%clk 0:01:18.6]} 24. Kxe4 {[%clk 0:01:33.4]}
24... Bd5+ {[%clk 0:01:12.1]} 25. Kf4 {[%clk 0:01:32.7]} 25... Bxg2 {[%clk
0:01:11.5]} 26. Rxd8 {[%clk 0:01:14.6]} 26... Rxd8 {[%clk 0:01:12.4]} 27. Rg1
{[%clk 0:01:14.7]} 27... g5+ {[%clk 0:01:09.4]} 28. Kg3 {[%clk 0:01:11.5]} 28...
Be4 {[%clk 0:01:04.6]} 29. Re1 {[%clk 0:01:07.8]} 29... f5 {[%clk 0:01:03.7]}
30. c3 {[%clk 0:01:06.1]} 30... bxc3 {[%clk 0:00:58.3]} 31. Na3 {[%clk
0:01:01.4]} 31... Kf6 {[%clk 0:00:49.1]} 32. Rc1 {[%clk 0:00:59.3]} 32... Rd3+
{[%clk 0:00:42.1]} 33. Kf2 {[%clk 0:00:53.3]} 33... Rxh3 {[%clk 0:00:40.1]} 34.
a5 {[%clk 0:00:52.4]} 34... f4 {[%clk 0:00:20.9]} 35. Ke2 {[%clk 0:00:43.3]}
35... Rh2+ {[%clk 0:00:18.1]} 36. Kd1 {[%clk 0:00:42.3]} 36... Rh1+ {[%clk
0:00:17.4]} 0-1

[Event "Early-Titled-Tuesday-Blitz-April-16-2024"]
[Site "Chess.com"]
[Date "2024.04.16"]
[Round "10"]
[White "alexrustemov"]
[Black "Leo_C"]
[Result "1-0"]
[WhiteElo "2845"]
[BlackElo "2665"]
[TimeControl "180+1"]
[EndTime "9:59:07 PDT"]
[Termination "alexrustemov won on time"]

1. d4 {[%clk 0:03:00.9]} 1... Nf6 {[%clk 0:02:59.7]} 2. c4 {[%clk 0:03:01.4]}
2... e6 {[%clk 0:02:59.8]} 3. Nf3 {[%clk 0:03:02]} 3... d5 {[%clk 0:03:00.1]} 4.
Nc3 {[%clk 0:03:01.8]} 4... Bb4 {[%clk 0:02:56.1]} 5. Bg5 {[%clk 0:02:56.1]}
5... h6 {[%clk 0:02:55.6]} 6. Bxf6 {[%clk 0:02:56]} 6... Qxf6 {[%clk 0:02:56.5]}
7. e3 {[%clk 0:02:56.7]} 7... O-O {[%clk 0:02:56.2]} 8. Qb3 {[%clk 0:02:57.3]}
8... c5 {[%clk 0:02:54.3]} 9. cxd5 {[%clk 0:02:54.9]} 9... exd5 {[%clk 0:02:54]}
10. dxc5 {[%clk 0:02:55.1]} 10... Nc6 {[%clk 0:02:52.2]} 11. O-O-O {[%clk
0:02:53.4]} 11... Be6 {[%clk 0:02:47.3]} 12. Nxd5 {[%clk 0:02:49.8]} 12... Bxd5
{[%clk 0:02:44.3]} 13. Rxd5 {[%clk 0:02:40]} 13... Qe7 {[%clk 0:02:34.8]} 14.
Qc2 {[%clk 0:02:31.7]} 14... Rac8 {[%clk 0:02:31]} 15. Kb1 {[%clk 0:02:14.4]}
15... Nb8 {[%clk 0:02:10.1]} 16. Bc4 {[%clk 0:02:09]} 16... Bxc5 {[%clk
0:02:08.3]} 17. Qd3 {[%clk 0:01:59.7]} 17... Nc6 {[%clk 0:01:56]} 18. Rd7 {[%clk
0:01:58.1]} 18... Qf6 {[%clk 0:01:56.1]} 19. Rd1 {[%clk 0:01:51.9]} 19... a6
{[%clk 0:01:26.4]} 20. Bb3 {[%clk 0:01:50.5]} 20... Na5 {[%clk 0:01:22.3]} 21.
Bd5 {[%clk 0:01:45.8]} 21... b5 {[%clk 0:01:19.6]} 22. Nd2 {[%clk 0:01:38.1]}
22... Bb4 {[%clk 0:01:16.9]} 23. Ne4 {[%clk 0:01:34.4]} 23... Qf5 {[%clk
0:00:56.7]} 24. f3 {[%clk 0:01:31.7]} 24... Qxd7 {[%clk 0:00:56]} 25. Nf6+
{[%clk 0:01:26.2]} 25... gxf6 {[%clk 0:00:56.1]} 26. Qg6+ {[%clk 0:01:26]} 26...
Kh8 {[%clk 0:00:56.6]} 27. Qxh6+ {[%clk 0:01:11.7]} 27... Kg8 {[%clk 0:00:56.3]}
28. Qg6+ {[%clk 0:01:11.9]} 28... Kh8 {[%clk 0:00:56.5]} 29. Qxf6+ {[%clk
0:01:12.4]} 29... Kg8 {[%clk 0:00:56.4]} 30. Rd4 {[%clk 0:00:55.1]} 30... Be7
{[%clk 0:00:21.4]} 31. Qg6+ {[%clk 0:00:47.1]} 31... Kh8 {[%clk 0:00:21.6]} 32.
Qh6+ {[%clk 0:00:47.7]} 32... Kg8 {[%clk 0:00:21.6]} 33. Be4 {[%clk 0:00:47.4]}
33... Rc1+ {[%clk 0:00:16.4]} 34. Kxc1 {[%clk 0:00:47]} 34... Qc7+ {[%clk
0:00:06.8]} 35. Kb1 {[%clk 0:00:41.7]} 1-0

[Event "Early-Titled-Tuesday-Blitz-April-16-2024"]
[Site "Chess.com"]
[Date "2024.04.16"]
[Round "10"]
[White "noblerone"]
[Black "UnTucopalaTimba"]
[Result "1-0"]
[WhiteElo "2483"]
[BlackElo "2019"]
[TimeControl "180+1"]
[EndTime "9:59:09 PDT"]
[Termination "noblerone won by resignation"]

1. d4 {[%clk 0:03:00.8]} 1... Nf6 {[%clk 0:02:59.6]} 2. Nf3 {[%clk 0:03:01.7]}
2... e6 {[%clk 0:02:58.7]} 3. Bg5 {[%clk 0:03:02.6]} 3... d5 {[%clk 0:02:58]} 4.
Nbd2 {[%clk 0:03:03.1]} 4... c5 {[%clk 0:02:56.7]} 5. e3 {[%clk 0:03:03.4]} 5...
Nc6 {[%clk 0:02:56.4]} 6. c3 {[%clk 0:03:03.8]} 6... Be7 {[%clk 0:02:54.5]} 7.
Bd3 {[%clk 0:03:03.7]} 7... Qb6 {[%clk 0:02:53.3]} 8. Rb1 {[%clk 0:03:03.5]}
8... c4 {[%clk 0:02:51.7]} 9. Bc2 {[%clk 0:03:03.5]} 9... a5 {[%clk 0:02:49.8]}
10. O-O {[%clk 0:03:02.8]} 10... Qc7 {[%clk 0:02:49.5]} 11. Re1 {[%clk
0:02:57.5]} 11... b5 {[%clk 0:02:47.6]} 12. e4 {[%clk 0:02:57.6]} 12... dxe4
{[%clk 0:02:44.6]} 13. Nxe4 {[%clk 0:02:56.5]} 13... Nxe4 {[%clk 0:02:42.3]} 14.
Bxe4 {[%clk 0:02:57.4]} 14... Bb7 {[%clk 0:02:39.6]} 15. d5 {[%clk 0:02:52.9]}
15... Nd8 {[%clk 0:02:10.5]} 16. Bxe7 {[%clk 0:02:48.6]} 16... Qxe7 {[%clk
0:02:09.9]} 17. dxe6 {[%clk 0:02:46.6]} 17... O-O {[%clk 0:02:03.6]} 18. exf7+
{[%clk 0:02:44]} 18... Qxf7 {[%clk 0:01:55.3]} 19. Bxh7+ {[%clk 0:02:28.3]}
19... Kh8 {[%clk 0:01:53]} 20. Be4 {[%clk 0:02:28.7]} 20... Bxe4 {[%clk
0:01:51.9]} 21. Rxe4 {[%clk 0:02:29.6]} 21... Qf5 {[%clk 0:01:49.9]} 22. Re5
{[%clk 0:02:25.4]} 22... Qg6 {[%clk 0:01:46.7]} 23. Rxb5 {[%clk 0:02:09.1]}
23... Ne6 {[%clk 0:01:38.7]} 24. Ra1 {[%clk 0:01:35.8]} 24... Rad8 {[%clk
0:01:33.2]} 25. Qf1 {[%clk 0:01:29.7]} 25... Nf4 {[%clk 0:01:26.7]} 26. Rg5
{[%clk 0:01:19.1]} 26... Qf7 {[%clk 0:01:15.8]} 27. Nd4 {[%clk 0:01:01.5]} 27...
Nd3 {[%clk 0:01:04.3]} 28. Rg3 {[%clk 0:00:51]} 28... Qxf2+ {[%clk 0:00:59.4]}
29. Qxf2 {[%clk 0:00:51.2]} 29... Nxf2 {[%clk 0:00:57.5]} 30. Ne6 {[%clk
0:00:49.1]} 30... Ne4 {[%clk 0:00:46]} 31. Rh3+ {[%clk 0:00:45.1]} 31... Kg8
{[%clk 0:00:45.8]} 32. Nxf8 {[%clk 0:00:41.8]} 32... Rxf8 {[%clk 0:00:44.8]} 33.
Re3 {[%clk 0:00:38.9]} 33... Nc5 {[%clk 0:00:39.1]} 34. Rd1 {[%clk 0:00:32.8]}
34... Nd3 {[%clk 0:00:38.3]} 35. b3 {[%clk 0:00:33]} 35... Nf4 {[%clk
0:00:28.1]} 36. bxc4 {[%clk 0:00:30.6]} 36... Rc8 {[%clk 0:00:27.6]} 37. Re4
{[%clk 0:00:29.8]} 37... Ng6 {[%clk 0:00:25.9]} 38. Red4 {[%clk 0:00:26.2]} 1-0